[Event "Titled Tuesday Blitz May 23 Late 2023"]
[White "Cagara, Paulina"]
[Black "Machidon, Cristi"]
[WhiteFideId "1124870"]
[BlackFideId "13904590"]
[WhiteElo "1967"]
[BlackElo "2355"]
[Result "0-1"]
[Round "06"]
[TimeControl "180+2"]
[Date "2023.05.23"]
[WhiteClock "0:00:10"]
[BlackClock "0:01:13"]

1. e4 {[%clk 0:03:00]}  c6 {[%clk 0:02:57]} 2. d4 {[%clk 0:03:00]}  d5 {[%clk 0:02:57]} 3. exd5 {[%clk 0:02:59]}  cxd5 {[%clk 0:02:57]} 4. Bd3 {[%clk 0:02:59]}  Nc6 {[%clk 0:02:57]} 5. c3 {[%clk 0:02:59]}  Nf6 {[%clk 0:02:57]} 6. h3 {[%clk 0:02:58]}  Qc7 {[%clk 0:02:54]} 7. Nf3 {[%clk 0:02:58]}  g6 {[%clk 0:02:54]} 8. Bg5 {[%clk 0:02:55]}  Bg7 {[%clk 0:02:53]} 9. Qd2 {[%clk 0:02:55]}  Ne4 {[%clk 0:02:51]} 10. Bxe4 {[%clk 0:02:51]}  dxe4 {[%clk 0:02:52]} 11. Bf4 {[%clk 0:02:50]}  Qa5 {[%clk 0:02:45]} 12. Nh2 {[%clk 0:02:38]}  e5 {[%clk 0:02:42]} 13. dxe5 {[%clk 0:02:36]}  Nxe5 {[%clk 0:02:42]} 14. O-O {[%clk 0:02:28]}  O-O {[%clk 0:02:40]} 15. Na3 {[%clk 0:02:26]}  Be6 {[%clk 0:02:36]} 16. Nc2 {[%clk 0:02:22]}  Rfe8 {[%clk 0:02:20]} 17. Qe3 {[%clk 0:02:17]}  Nd3 {[%clk 0:02:11]} 18. Bh6 {[%clk 0:01:52]}  Bxh6 {[%clk 0:02:05]} 19. Qxh6 {[%clk 0:01:51]}  Nxb2 {[%clk 0:02:05]} 20. Nb4 {[%clk 0:01:46]}  Qe5 {[%clk 0:01:56]} 21. Rac1 {[%clk 0:01:36]}  Rac8 {[%clk 0:01:53]} 22. Rc2 {[%clk 0:01:34]}  Nd3 {[%clk 0:01:49]} 23. Re2 {[%clk 0:01:10]}  Qxc3 {[%clk 0:01:43]} 24. Nxd3 {[%clk 0:01:02]}  exd3 {[%clk 0:01:44]} 25. Re4 {[%clk 0:01:01]}  Rcd8 {[%clk 0:01:24]} 26. Rh4 {[%clk 0:00:57]}  Qg7 {[%clk 0:01:24]} 27. Qd2 {[%clk 0:00:53]}  Rd4 {[%clk 0:01:20]} 28. Nf3 {[%clk 0:00:45]}  Rxh4 {[%clk 0:01:19]} 29. Nxh4 {[%clk 0:00:44]}  Rd8 {[%clk 0:01:19]} 30. Nf3 {[%clk 0:00:42]}  Qf6 {[%clk 0:01:18]} 31. Rc1 {[%clk 0:00:39]}  Bxh3 {[%clk 0:01:15]} 32. Rc7 {[%clk 0:00:26]}  Bg4 {[%clk 0:01:14]} 33. Ng5 {[%clk 0:00:24]}  Qa1+ {[%clk 0:01:12]} 34. Rc1 {[%clk 0:00:17]}  Qxc1+ {[%clk 0:01:12]} 35. Qxc1 {[%clk 0:00:10]}  d2 {[%clk 0:01:13]} 0-1


[Site "https://www.chess.com"]

[Event "Titled Tuesday Blitz May 23 Late 2023"]
[White "Szyszylo, Rafal"]
[Black "Weetik, Vjacheslav"]
[WhiteFideId "1109626"]
[BlackFideId "4153472"]
[WhiteElo "1951"]
[BlackElo "2469"]
[Result "0-1"]
[Round "06"]
[TimeControl "180+2"]
[Date "2023.05.23"]
[WhiteClock "0:00:11"]
[BlackClock "0:00:16"]

1. e4 {[%clk 0:02:56]}  e5 {[%clk 0:02:59]} 2. Bc4 {[%clk 0:02:55]}  Nf6 {[%clk 0:02:59]} 3. Nc3 {[%clk 0:02:54]}  Nc6 {[%clk 0:02:55]} 4. d3 {[%clk 0:02:52]}  Na5 {[%clk 0:02:55]} 5. Qf3 {[%clk 0:02:51]}  Be7 {[%clk 0:02:44]} 6. Nge2 {[%clk 0:02:47]}  c6 {[%clk 0:02:30]} 7. O-O {[%clk 0:02:36]}  b5 {[%clk 0:02:30]} 8. Bb3 {[%clk 0:02:36]}  b4 {[%clk 0:02:27]} 9. Nd1 {[%clk 0:02:35]}  d5 {[%clk 0:02:24]} 10. exd5 {[%clk 0:02:18]}  Nxb3 {[%clk 0:02:16]} 11. axb3 {[%clk 0:02:16]}  cxd5 {[%clk 0:02:15]} 12. Qg3 {[%clk 0:01:45]}  Bd6 {[%clk 0:01:53]} 13. Qxg7 {[%clk 0:01:44]}  Rg8 {[%clk 0:01:53]} 14. Qh6 {[%clk 0:01:45]}  Rg6 {[%clk 0:01:19]} 15. Qh4 {[%clk 0:01:34]}  Be6 {[%clk 0:01:11]} 16. Ng3 {[%clk 0:01:23]}  Be7 {[%clk 0:01:01]} 17. Bg5 {[%clk 0:01:04]}  h6 {[%clk 0:01:00]} 18. Bxf6 {[%clk 0:01:02]}  Rxf6 {[%clk 0:00:55]} 19. Qh5 {[%clk 0:00:57]}  Qc7 {[%clk 0:00:44]} 20. Ne3 {[%clk 0:00:52]}  O-O-O {[%clk 0:00:41]} 21. Nef5 {[%clk 0:00:46]}  Bc5 {[%clk 0:00:41]} 22. d4 {[%clk 0:00:43]}  exd4 {[%clk 0:00:38]} 23. Rfd1 {[%clk 0:00:34]}  Qb6 {[%clk 0:00:36]} 24. Rd3 {[%clk 0:00:31]}  Rg8 {[%clk 0:00:35]} 25. Rad1 {[%clk 0:00:30]}  Rg5 {[%clk 0:00:35]} 26. Qf3 {[%clk 0:00:26]}  Bxf5 {[%clk 0:00:31]} 27. Nxf5 {[%clk 0:00:25]}  Rgxf5 {[%clk 0:00:30]} 28. Qg4 {[%clk 0:00:25]}  Qe6 {[%clk 0:00:27]} 29. f3 {[%clk 0:00:20]}  Re5 {[%clk 0:00:22]} 30. Qg8+ {[%clk 0:00:17]}  Kb7 {[%clk 0:00:23]} 31. h3 {[%clk 0:00:17]}  Rg6 {[%clk 0:00:20]} 32. Qd8 {[%clk 0:00:15]}  Re1+ {[%clk 0:00:19]} 33. Kh2 {[%clk 0:00:15]}  Bd6+ {[%clk 0:00:16]} 34. f4 {[%clk 0:00:11]}  Bxf4+ {[%clk 0:00:16]} 35. g3 {[%clk 0:00:11]}  Qe2# {[%clk 0:00:16]} 0-1


[Site "https://www.chess.com"]

[Event "Titled Tuesday Blitz May 23 Late 2023"]
[White "Camilla_Lee"]
[Black "ArchibaldCerveza29"]
[WhiteElo "2651"]
[BlackElo "2394"]
[Result "0-1"]
[Round "06"]
[TimeControl "180+2"]
[Date "2023.05.23"]
[WhiteClock "0:01:09"]
[BlackClock "0:00:20"]

1. e4 {[%clk 0:03:00]}  e5 {[%clk 0:02:55]} 2. Nf3 {[%clk 0:03:00]}  Nc6 {[%clk 0:02:56]} 3. Nc3 {[%clk 0:03:00]}  Nf6 {[%clk 0:02:56]} 4. d4 {[%clk 0:02:55]}  exd4 {[%clk 0:02:54]} 5. Nd5 {[%clk 0:02:55]}  Nb4 {[%clk 0:02:53]} 6. Bc4 {[%clk 0:02:54]}  Nbxd5 {[%clk 0:02:51]} 7. exd5 {[%clk 0:02:55]}  Bb4+ {[%clk 0:02:50]} 8. Bd2 {[%clk 0:02:55]}  Qe7+ {[%clk 0:02:42]} 9. Qe2 {[%clk 0:02:55]}  Bxd2+ {[%clk 0:02:41]} 10. Kxd2 {[%clk 0:02:54]}  Ne4+ {[%clk 0:02:08]} 11. Kd3 {[%clk 0:02:54]}  f5 {[%clk 0:01:58]} 12. Nxd4 {[%clk 0:02:51]}  Kd8 {[%clk 0:01:41]} 13. Nxf5 {[%clk 0:02:27]}  Nc5+ {[%clk 0:01:40]} 14. Kd2 {[%clk 0:02:27]}  Qf6 {[%clk 0:01:30]} 15. g4 {[%clk 0:01:44]}  Re8 {[%clk 0:01:18]} 16. Ne3 {[%clk 0:01:44]}  Qxb2 {[%clk 0:01:08]} 17. Rab1 {[%clk 0:01:41]}  Ne4+ {[%clk 0:00:58]} 18. Ke1 {[%clk 0:01:41]}  Qc3+ {[%clk 0:00:56]} 19. Kd1 {[%clk 0:01:26]}  Qd4+ {[%clk 0:00:55]} 20. Bd3 {[%clk 0:01:25]}  Nc3+ {[%clk 0:00:54]} 21. Kd2 {[%clk 0:01:25]}  Nxe2 {[%clk 0:00:55]} 22. Kxe2 {[%clk 0:01:26]}  d6 {[%clk 0:00:52]} 23. Rhe1 {[%clk 0:01:26]}  Bxg4+ {[%clk 0:00:51]} 24. Kd2 {[%clk 0:01:26]}  Bf3 {[%clk 0:00:45]} 25. Rxb7 {[%clk 0:01:22]}  Bxd5 {[%clk 0:00:38]} 26. Rxc7 {[%clk 0:01:23]}  Kxc7 {[%clk 0:00:31]} 27. Rb1 {[%clk 0:01:22]}  Bc6 {[%clk 0:00:28]} 28. a3 {[%clk 0:01:17]}  Rab8 {[%clk 0:00:27]} 29. Rg1 {[%clk 0:01:17]}  g6 {[%clk 0:00:27]} 30. Rg4 {[%clk 0:01:18]}  Qb2 {[%clk 0:00:22]} 31. Rc4 {[%clk 0:01:16]}  d5 {[%clk 0:00:19]} 32. Nxd5+ {[%clk 0:01:16]}  Kd6 {[%clk 0:00:20]} 33. Nb4 {[%clk 0:01:15]}  Rxb4 {[%clk 0:00:19]} 34. axb4 {[%clk 0:01:14]}  Qa1 {[%clk 0:00:19]} 35. c3 {[%clk 0:01:11]}  Qe1+ {[%clk 0:00:19]} 36. Kc2 {[%clk 0:01:11]}  Qxf2+ {[%clk 0:00:19]} 37. Kb3 {[%clk 0:01:09]}  Bd5 {[%clk 0:00:20]} 0-1


[Site "https://www.chess.com"]

[Event "Titled Tuesday Blitz May 23 Late 2023"]
[White "Sourath Biswas"]
[Black "Davidson, Kevin"]
[WhiteFideId "35091484"]
[BlackFideId "2056810"]
[WhiteElo "2171"]
[BlackElo "2151"]
[Result "1-0"]
[Round "06"]
[TimeControl "180+2"]
[Date "2023.05.23"]
[WhiteClock "0:00:37"]
[BlackClock "0:00:08"]

1. d4 {[%clk 0:03:00]}  Nf6 {[%clk 0:02:56]} 2. Bf4 {[%clk 0:03:00]}  g6 {[%clk 0:02:54]} 3. Nc3 {[%clk 0:03:00]}  Bg7 {[%clk 0:02:54]} 4. e4 {[%clk 0:03:00]}  d6 {[%clk 0:02:55]} 5. Qd2 {[%clk 0:03:00]}  c6 {[%clk 0:02:54]} 6. O-O-O {[%clk 0:03:00]}  b5 {[%clk 0:02:53]} 7. f3 {[%clk 0:02:59]}  b4 {[%clk 0:02:52]} 8. Nb1 {[%clk 0:02:59]}  a5 {[%clk 0:02:46]} 9. Bh6 {[%clk 0:02:59]}  Bxh6 {[%clk 0:02:29]} 10. Qxh6 {[%clk 0:02:57]}  a4 {[%clk 0:02:28]} 11. h4 {[%clk 0:02:49]}  Be6 {[%clk 0:02:08]} 12. e5 {[%clk 0:02:41]}  dxe5 {[%clk 0:01:58]} 13. dxe5 {[%clk 0:02:40]}  Nd5 {[%clk 0:01:58]} 14. h5 {[%clk 0:02:38]}  Nd7 {[%clk 0:01:48]} 15. hxg6 {[%clk 0:02:36]}  fxg6 {[%clk 0:01:47]} 16. Nh3 {[%clk 0:02:14]}  Nxe5 {[%clk 0:01:30]} 17. Ng5 {[%clk 0:02:13]}  Qd6 {[%clk 0:01:23]} 18. Ne4 {[%clk 0:01:53]}  Qc7 {[%clk 0:01:01]} 19. Ng5 {[%clk 0:00:45]}  Qd7 {[%clk 0:00:55]} 20. Qg7 {[%clk 0:00:41]}  Rg8 {[%clk 0:00:48]} 21. Qxe5 {[%clk 0:00:40]}  Bf5 {[%clk 0:00:28]} 22. Rxh7 {[%clk 0:00:38]}  Rd8 {[%clk 0:00:08]} 23. Rh8 {[%clk 0:00:37]} 1-0


[Site "https://www.chess.com"]

[Event "Titled Tuesday Blitz May 23 Late 2023"]
[White "Gerbelli Neto, Eduardo"]
[Black "Ollier, Pablo"]
[WhiteFideId "2103281"]
[BlackFideId "652318"]
[WhiteElo "2178"]
[BlackElo "2560"]
[Result "0-1"]
[Round "06"]
[TimeControl "180+2"]
[Date "2023.05.23"]
[WhiteClock "0:00:04"]
[BlackClock "0:00:14"]

1. e4 {[%clk 0:03:00]}  e5 {[%clk 0:03:00]} 2. Nf3 {[%clk 0:03:00]}  Nc6 {[%clk 0:03:00]} 3. d4 {[%clk 0:02:58]}  exd4 {[%clk 0:03:01]} 4. Bc4 {[%clk 0:02:58]}  Nf6 {[%clk 0:03:01]} 5. O-O {[%clk 0:02:58]}  Nxe4 {[%clk 0:03:02]} 6. Re1 {[%clk 0:02:59]}  d5 {[%clk 0:03:01]} 7. Bxd5 {[%clk 0:02:57]}  Qxd5 {[%clk 0:03:02]} 8. Nc3 {[%clk 0:02:56]}  Qh5 {[%clk 0:03:02]} 9. Rxe4+ {[%clk 0:02:48]}  Be6 {[%clk 0:02:58]} 10. Nxd4 {[%clk 0:02:36]}  Qxd1+ {[%clk 0:02:48]} 11. Nxd1 {[%clk 0:02:37]}  O-O-O {[%clk 0:02:39]} 12. Be3 {[%clk 0:02:37]}  Nxd4 {[%clk 0:02:14]} 13. Rxd4 {[%clk 0:02:36]}  Be7 {[%clk 0:02:01]} 14. Nc3 {[%clk 0:02:29]}  Bf6 {[%clk 0:01:55]} 15. Rxd8+ {[%clk 0:02:29]}  Rxd8 {[%clk 0:01:56]} 16. a3 {[%clk 0:02:12]}  Bf5 {[%clk 0:01:51]} 17. Rc1 {[%clk 0:01:47]}  b6 {[%clk 0:01:51]} 18. f3 {[%clk 0:01:40]}  c5 {[%clk 0:01:50]} 19. Kf2 {[%clk 0:01:35]}  g5 {[%clk 0:01:41]} 20. g4 {[%clk 0:01:24]}  Bg6 {[%clk 0:01:38]} 21. Ke2 {[%clk 0:01:18]}  Kb7 {[%clk 0:01:31]} 22. h4 {[%clk 0:00:57]}  h6 {[%clk 0:01:06]} 23. hxg5 {[%clk 0:00:55]}  hxg5 {[%clk 0:01:07]} 24. Bd2 {[%clk 0:00:36]}  Kc6 {[%clk 0:01:00]} 25. b4 {[%clk 0:00:32]}  Be5 {[%clk 0:00:51]} 26. bxc5 {[%clk 0:00:28]}  Rxd2+ {[%clk 0:00:31]} 27. Kxd2 {[%clk 0:00:26]}  Bf4+ {[%clk 0:00:32]} 28. Kd1 {[%clk 0:00:25]}  Bxc1 {[%clk 0:00:33]} 29. Kxc1 {[%clk 0:00:26]}  Kxc5 {[%clk 0:00:34]} 30. Kd2 {[%clk 0:00:24]}  Kc4 {[%clk 0:00:29]} 31. Ne2 {[%clk 0:00:16]}  f6 {[%clk 0:00:20]} 32. f4 {[%clk 0:00:15]}  Be8 {[%clk 0:00:18]} 33. fxg5 {[%clk 0:00:15]}  fxg5 {[%clk 0:00:19]} 34. Ke3 {[%clk 0:00:11]}  Bd7 {[%clk 0:00:16]} 35. Kf3 {[%clk 0:00:09]}  a5 {[%clk 0:00:16]} 36. Ng3 {[%clk 0:00:03]}  a4 {[%clk 0:00:12]} 37. Ne4 {[%clk 0:00:03]}  Bc6 {[%clk 0:00:13]} 38. Ke3 {[%clk 0:00:03]}  Bxe4 {[%clk 0:00:11]} 39. Kxe4 {[%clk 0:00:04]}  b5 {[%clk 0:00:11]} 40. Kf5 {[%clk 0:00:05]}  b4 {[%clk 0:00:12]} 41. axb4 {[%clk 0:00:04]}  a3 {[%clk 0:00:13]} 42. Kxg5 {[%clk 0:00:05]}  a2 {[%clk 0:00:13]} 43. Kf5 {[%clk 0:00:05]}  a1=Q {[%clk 0:00:14]} 44. g5 {[%clk 0:00:04]}  Qg7 {[%clk 0:00:14]} 0-1


[Site "https://www.chess.com"]

[Event "Titled Tuesday Blitz May 23 Late 2023"]
[White "Ibadov, Dashgyn"]
[Black "Mickiewicz, Piotr"]
[WhiteFideId "24107514"]
[BlackFideId "1114891"]
[WhiteElo "2208"]
[BlackElo "2246"]
[Result "0-1"]
[Round "06"]
[TimeControl "180+2"]
[Date "2023.05.23"]
[WhiteClock "0:00:00"]
[BlackClock "0:00:22"]

1. e4 {[%clk 0:03:00]}  e6 {[%clk 0:02:56]} 2. d4 {[%clk 0:02:59]}  c5 {[%clk 0:02:56]} 3. Nf3 {[%clk 0:02:55]}  cxd4 {[%clk 0:02:55]} 4. Nxd4 {[%clk 0:02:56]}  a6 {[%clk 0:02:55]} 5. Nc3 {[%clk 0:02:56]}  b5 {[%clk 0:02:49]} 6. a3 {[%clk 0:02:55]}  Qc7 {[%clk 0:02:48]} 7. g3 {[%clk 0:02:53]}  Bc5 {[%clk 0:02:47]} 8. Nb3 {[%clk 0:02:44]}  Be7 {[%clk 0:02:45]} 9. Bg2 {[%clk 0:02:44]}  Bb7 {[%clk 0:02:44]} 10. O-O {[%clk 0:02:43]}  h5 {[%clk 0:02:38]} 11. Re1 {[%clk 0:02:33]}  h4 {[%clk 0:02:37]} 12. Bf4 {[%clk 0:02:28]}  d6 {[%clk 0:02:31]} 13. e5 {[%clk 0:02:28]}  d5 {[%clk 0:02:06]} 14. Qg4 {[%clk 0:02:17]}  hxg3 {[%clk 0:01:41]} 15. hxg3 {[%clk 0:02:13]}  g6 {[%clk 0:01:37]} 16. Nd4 {[%clk 0:02:12]}  Qb6 {[%clk 0:01:23]} 17. Be3 {[%clk 0:02:01]}  Nh6 {[%clk 0:01:20]} 18. Qh3 {[%clk 0:01:55]}  Qc7 {[%clk 0:01:06]} 19. Bxh6 {[%clk 0:01:40]}  Qb6 {[%clk 0:01:03]} 20. Rad1 {[%clk 0:00:54]}  Bf8 {[%clk 0:01:00]} 21. Qg4 {[%clk 0:00:21]}  Rxh6 {[%clk 0:00:58]} 22. Nce2 {[%clk 0:00:15]}  Nd7 {[%clk 0:00:56]} 23. Nf4 {[%clk 0:00:14]}  Be7 {[%clk 0:00:49]} 24. Nfxe6 {[%clk 0:00:10]}  fxe6 {[%clk 0:00:48]} 25. Nxe6 {[%clk 0:00:11]}  Nf8 {[%clk 0:00:44]} 26. Nd4 {[%clk 0:00:02]}  Kf7 {[%clk 0:00:23]} 27. Qf4+ {[%clk 0:00:02]}  Kg7 {[%clk 0:00:23]} 28. e6 {[%clk 0:00:02]}  Qd6 {[%clk 0:00:22]} 29. Qf7+ {[%clk 0:00:02]}  Kh8 {[%clk 0:00:22]} 30. Nf3 {[%clk 0:00:00]}  Rh7 {[%clk 0:00:22]} 0-1


[Site "https://www.chess.com"]

[Event "Titled Tuesday Blitz May 23 Late 2023"]
[White "Ammar, Sedrani"]
[Black "OPQRC"]
[WhiteFideId "9312331"]
[WhiteElo "2115"]
[BlackElo "2540"]
[Result "0-1"]
[Round "06"]
[TimeControl "180+2"]
[Date "2023.05.23"]
[WhiteClock "0:00:37"]
[BlackClock "0:01:09"]

1. d4 {[%clk 0:02:59]}  Nf6 {[%clk 0:02:59]} 2. c4 {[%clk 0:02:59]}  e6 {[%clk 0:03:00]} 3. Nf3 {[%clk 0:02:57]}  d5 {[%clk 0:03:01]} 4. Nc3 {[%clk 0:02:55]}  c5 {[%clk 0:03:00]} 5. cxd5 {[%clk 0:02:53]}  Nxd5 {[%clk 0:03:00]} 6. e4 {[%clk 0:02:51]}  Nxc3 {[%clk 0:03:00]} 7. bxc3 {[%clk 0:02:51]}  cxd4 {[%clk 0:03:01]} 8. cxd4 {[%clk 0:02:52]}  Bb4+ {[%clk 0:03:02]} 9. Bd2 {[%clk 0:02:52]}  Bxd2+ {[%clk 0:03:03]} 10. Qxd2 {[%clk 0:02:53]}  O-O {[%clk 0:03:04]} 11. Bc4 {[%clk 0:02:52]}  Nd7 {[%clk 0:03:03]} 12. O-O {[%clk 0:02:52]}  b6 {[%clk 0:03:03]} 13. Rfe1 {[%clk 0:02:49]}  Bb7 {[%clk 0:03:03]} 14. Rad1 {[%clk 0:02:49]}  Rc8 {[%clk 0:03:02]} 15. Bb3 {[%clk 0:02:49]}  Re8 {[%clk 0:03:02]} 16. Qf4 {[%clk 0:02:49]}  Qc7 {[%clk 0:02:59]} 17. Qh4 {[%clk 0:02:49]}  h6 {[%clk 0:02:58]} 18. Re3 {[%clk 0:02:39]}  Qd8 {[%clk 0:02:50]} 19. Qg3 {[%clk 0:02:35]}  Nf6 {[%clk 0:02:47]} 20. e5 {[%clk 0:02:28]}  Nd5 {[%clk 0:02:25]} 21. Red3 {[%clk 0:02:24]}  a5 {[%clk 0:02:24]} 22. Ba4 {[%clk 0:02:15]}  Re7 {[%clk 0:02:21]} 23. Nd2 {[%clk 0:02:08]}  Ba6 {[%clk 0:02:15]} 24. Rb3 {[%clk 0:01:47]}  b5 {[%clk 0:02:15]} 25. Bxb5 {[%clk 0:01:44]}  Bxb5 {[%clk 0:02:16]} 26. Rxb5 {[%clk 0:01:44]}  Nc3 {[%clk 0:02:17]} 27. Kf1 {[%clk 0:01:30]}  Nxb5 {[%clk 0:02:13]} 28. Ne4 {[%clk 0:01:30]}  Kh8 {[%clk 0:01:57]} 29. Qe3 {[%clk 0:01:20]}  Qd5 {[%clk 0:01:42]} 30. g4 {[%clk 0:01:15]}  Qc4+ {[%clk 0:01:39]} 31. Kg2 {[%clk 0:01:13]}  Nc3 {[%clk 0:01:31]} 32. Nf6 {[%clk 0:01:00]}  Nxd1 {[%clk 0:01:25]} 33. Qh3 {[%clk 0:00:51]}  Nxf2 {[%clk 0:01:15]} 34. Qh4 {[%clk 0:00:37]}  Qxd4 {[%clk 0:01:09]} 0-1


[Site "https://www.chess.com"]

[Event "Titled Tuesday Blitz May 23 Late 2023"]
[White "FuenfgegenWilly"]
[Black "Martic, Ivan"]
[BlackFideId "929301"]
[WhiteElo "2366"]
[BlackElo "2360"]
[Result "0-1"]
[Round "06"]
[TimeControl "180+2"]
[Date "2023.05.23"]
[WhiteClock "0:00:00"]
[BlackClock "0:00:06"]

1. b3 {[%clk 0:02:55]}  e5 {[%clk 0:02:59]} 2. Bb2 {[%clk 0:02:56]}  Nc6 {[%clk 0:02:59]} 3. e3 {[%clk 0:02:56]}  Nf6 {[%clk 0:02:58]} 4. c4 {[%clk 0:02:57]}  Be7 {[%clk 0:02:45]} 5. d3 {[%clk 0:02:52]}  O-O {[%clk 0:02:44]} 6. Nf3 {[%clk 0:02:52]}  d6 {[%clk 0:02:41]} 7. Be2 {[%clk 0:02:52]}  Re8 {[%clk 0:02:38]} 8. O-O {[%clk 0:02:52]}  Bf8 {[%clk 0:02:39]} 9. Nc3 {[%clk 0:02:52]}  a6 {[%clk 0:02:35]} 10. Rc1 {[%clk 0:02:46]}  Ne7 {[%clk 0:02:31]} 11. b4 {[%clk 0:02:35]}  Ng6 {[%clk 0:02:30]} 12. Ne4 {[%clk 0:02:29]}  c6 {[%clk 0:02:27]} 13. a3 {[%clk 0:02:24]}  Nd7 {[%clk 0:02:21]} 14. Ng3 {[%clk 0:02:07]}  Nf6 {[%clk 0:02:17]} 15. Qb3 {[%clk 0:02:00]}  Bg4 {[%clk 0:02:11]} 16. Rfd1 {[%clk 0:01:56]}  h5 {[%clk 0:02:06]} 17. a4 {[%clk 0:01:54]}  h4 {[%clk 0:02:06]} 18. Nf1 {[%clk 0:01:54]}  h3 {[%clk 0:02:04]} 19. g3 {[%clk 0:01:55]}  Nh7 {[%clk 0:01:59]} 20. Nd4 {[%clk 0:01:39]}  Bxe2 {[%clk 0:01:55]} 21. Nxe2 {[%clk 0:01:39]}  Ng5 {[%clk 0:01:53]} 22. Nd2 {[%clk 0:01:36]}  Qd7 {[%clk 0:01:47]} 23. f3 {[%clk 0:01:32]}  d5 {[%clk 0:01:32]} 24. cxd5 {[%clk 0:01:31]}  cxd5 {[%clk 0:01:33]} 25. Kf2 {[%clk 0:01:26]}  Rac8 {[%clk 0:01:27]} 26. b5 {[%clk 0:01:12]}  a5 {[%clk 0:01:24]} 27. Rxc8 {[%clk 0:01:09]}  Rxc8 {[%clk 0:01:23]} 28. Rc1 {[%clk 0:01:09]}  Rxc1 {[%clk 0:01:20]} 29. Bxc1 {[%clk 0:01:10]}  Bb4 {[%clk 0:01:20]} 30. f4 {[%clk 0:01:00]}  exf4 {[%clk 0:01:16]} 31. exf4 {[%clk 0:01:00]}  Nh7 {[%clk 0:01:07]} 32. Nf3 {[%clk 0:00:42]}  Nf6 {[%clk 0:01:07]} 33. Ned4 {[%clk 0:00:36]}  Bc5 {[%clk 0:01:04]} 34. Kf1 {[%clk 0:00:30]}  Ng4 {[%clk 0:01:03]} 35. Qc3 {[%clk 0:00:26]}  Bxd4 {[%clk 0:00:58]} 36. Qxd4 {[%clk 0:00:26]}  Qc7 {[%clk 0:00:57]} 37. Qb2 {[%clk 0:00:19]}  Ne7 {[%clk 0:00:51]} 38. Ne5 {[%clk 0:00:17]}  Nxe5 {[%clk 0:00:49]} 39. fxe5 {[%clk 0:00:17]}  Qd7 {[%clk 0:00:47]} 40. Bf4 {[%clk 0:00:16]}  Qf5 {[%clk 0:00:46]} 41. Ke2 {[%clk 0:00:14]}  g5 {[%clk 0:00:45]} 42. Be3 {[%clk 0:00:14]}  Qg4+ {[%clk 0:00:42]} 43. Kf2 {[%clk 0:00:13]}  Qd1 {[%clk 0:00:37]} 44. Qd4 {[%clk 0:00:11]}  Qh1 {[%clk 0:00:34]} 45. Qg4 {[%clk 0:00:07]}  Qg2+ {[%clk 0:00:33]} 46. Ke1 {[%clk 0:00:07]}  Qxh2 {[%clk 0:00:31]} 47. Qxg5+ {[%clk 0:00:07]}  Ng6 {[%clk 0:00:31]} 48. Qd8+ {[%clk 0:00:06]}  Kh7 {[%clk 0:00:31]} 49. Qd7 {[%clk 0:00:03]}  Qxg3+ {[%clk 0:00:30]} 50. Kd2 {[%clk 0:00:02]}  Qg2+ {[%clk 0:00:18]} 51. Kc3 {[%clk 0:00:02]}  d4+ {[%clk 0:00:17]} 52. Kxd4 {[%clk 0:00:01]}  Qb2+ {[%clk 0:00:14]} 53. Ke4 {[%clk 0:00:01]}  Qxe5+ {[%clk 0:00:14]} 54. Kf3 {[%clk 0:00:01]}  Qf6+ {[%clk 0:00:12]} 55. Kg3 {[%clk 0:00:02]}  Ne5 {[%clk 0:00:10]} 56. Qd5 {[%clk 0:00:02]}  h2 {[%clk 0:00:08]} 57. Qe4+ {[%clk 0:00:01]}  Qg6+ {[%clk 0:00:06]} 58. Kxh2 {[%clk 0:00:01]}  Ng4+ {[%clk 0:00:05]} 59. Kg3 {[%clk 0:00:00]}  Qxe4 {[%clk 0:00:06]} 0-1


[Site "https://www.chess.com"]

[Event "Titled Tuesday Blitz May 23 Late 2023"]
[White "Figorito, Nick"]
[Black "Kim, Sergey"]
[WhiteFideId "30923689"]
[BlackFideId "13700570"]
[WhiteElo "2363"]
[BlackElo "2487"]
[Result "1-0"]
[Round "06"]
[TimeControl "180+2"]
[Date "2023.05.23"]
[WhiteClock "0:01:15"]
[BlackClock "0:01:17"]

1. Nf3 {[%clk 0:03:00]}  Nf6 {[%clk 0:02:59]} 2. g3 {[%clk 0:03:01]}  g6 {[%clk 0:02:59]} 3. Bg2 {[%clk 0:03:02]}  Bg7 {[%clk 0:03:00]} 4. O-O {[%clk 0:03:02]}  d6 {[%clk 0:03:00]} 5. c4 {[%clk 0:03:03]}  O-O {[%clk 0:03:00]} 6. Nc3 {[%clk 0:03:04]}  e5 {[%clk 0:03:00]} 7. d3 {[%clk 0:03:04]}  c6 {[%clk 0:03:00]} 8. Rb1 {[%clk 0:03:03]}  Re8 {[%clk 0:03:00]} 9. e4 {[%clk 0:03:03]}  a5 {[%clk 0:02:59]} 10. a3 {[%clk 0:03:03]}  Nbd7 {[%clk 0:02:56]} 11. b4 {[%clk 0:03:03]}  axb4 {[%clk 0:02:55]} 12. axb4 {[%clk 0:03:04]}  h6 {[%clk 0:02:54]} 13. b5 {[%clk 0:03:04]}  Nc5 {[%clk 0:02:53]} 14. Be3 {[%clk 0:03:02]}  Ne6 {[%clk 0:02:45]} 15. Qd2 {[%clk 0:03:01]}  Kh7 {[%clk 0:02:43]} 16. Rfe1 {[%clk 0:02:53]}  Ng4 {[%clk 0:02:42]} 17. bxc6 {[%clk 0:02:42]}  bxc6 {[%clk 0:02:30]} 18. Bb6 {[%clk 0:02:42]}  Qe7 {[%clk 0:02:23]} 19. h3 {[%clk 0:02:41]}  Nf6 {[%clk 0:02:22]} 20. d4 {[%clk 0:02:30]}  Nd7 {[%clk 0:02:17]} 21. d5 {[%clk 0:02:26]}  Nxb6 {[%clk 0:02:13]} 22. Rxb6 {[%clk 0:02:21]}  cxd5 {[%clk 0:02:10]} 23. Qxd5 {[%clk 0:01:56]}  Ra3 {[%clk 0:01:54]} 24. Nb5 {[%clk 0:01:53]}  Ra2 {[%clk 0:01:43]} 25. c5 {[%clk 0:01:39]}  Rb2 {[%clk 0:01:37]} 26. Nxd6 {[%clk 0:01:24]}  Rd8 {[%clk 0:01:36]} 27. Rxb2 {[%clk 0:01:23]}  Nxc5 {[%clk 0:01:27]} 28. Qxc5 {[%clk 0:01:16]}  Rxd6 {[%clk 0:01:17]} 29. Qxc8 {[%clk 0:01:15]} 1-0


[Site "https://www.chess.com"]